fUSD/lending_fUSD_20240328
["ID","MTS","AMOUNT","RATE_DAILY","PERIOD"]
[320888446,1711666236324,-500.0,0.00049588,120]
[320888447,1711666236334,-1283.17,0.00049588,120]
[320888448,1711666236344,-1209.94,0.00049588,120]
[320888449,1711666236353,-1566.39,0.00049588,120]
[320888450,1711666236363,-977.28,0.00049588,120]
[320888451,1711666236373,-376.57803373,0.00049588,120]
[320888452,1711666236383,-978.17,0.00049588,120]
[320888453,1711666236393,-505.49207093,0.00049589,120]
[320888454,1711666236403,-500.0,0.00049589,120]
[320888455,1711666236413,-218.16,0.00049589,120]
[320888456,1711666236422,-500.0,0.00049589,120]
[320888457,1711666236433,-676.57,0.00049589,120]
[320888458,1711666236443,-500.0,0.00049589,120]
[320888459,1711666236454,-500.0,0.00049589,120]
[320888460,1711666236464,-500.0,0.00049589,120]
[320888461,1711666236474,-500.0,0.00049589,120]
[320888462,1711666236484,-500.0,0.00049589,120]
[320888463,1711666236494,-500.0,0.00049589,120]
[320888464,1711666236504,-500.0,0.00049589,120]
[320888465,1711666236514,-500.0,0.00049589,120]
[320888466,1711666236525,-643.26,0.00049589,120]
[320888467,1711666236534,-500.0,0.00049589,120]
[320888468,1711666236544,-510.8,0.00049589,120]
[320888469,1711666236554,-500.0,0.00049589,120]
[320888470,1711666236564,-500.0,0.00049589,120]
[320888471,1711666236574,-500.0,0.00049589,120]
[320888472,1711666236583,-500.0,0.00049589,120]
[320888473,1711666236594,-500.0,0.00049589,120]
[320888474,1711666236604,-500.0,0.00049589,120]
[320888475,1711666236615,-500.0,0.00049589,120]
[320888476,1711666236625,-500.0,0.00049589,120]
[320888477,1711666236637,-500.0,0.00049589,120]
[320888478,1711666236648,-561.89,0.00049589,120]
[320888479,1711666236657,-557.5,0.00049589,120]
[320888480,1711666236667,-500.0,0.00049589,120]
[320888481,1711666236677,-500.0,0.00049589,120]
[320888482,1711666236686,-500.0,0.00049589,120]
[320888483,1711666236696,-500.0,0.00049589,120]
[320888484,1711666236706,-500.0,0.00049589,120]
[320888485,1711666236716,-500.0,0.00049589,120]
[320888486,1711666236725,-500.0,0.00049589,120]
[320888487,1711666236734,-500.0,0.00049589,120]
[320888488,1711666236744,-500.0,0.00049589,120]
[320888489,1711666236754,-500.0,0.00049589,120]
[320888490,1711666236764,-500.0,0.00049589,120]
[320888491,1711666236775,-500.0,0.00049589,120]
[320888492,1711666236785,-500.0,0.00049589,120]
[320888493,1711666236795,-500.0,0.00049589,120]
[320888494,1711666236805,-500.0,0.00049589,120]
[320888495,1711666236816,-500.0,0.00049589,120]
[320888496,1711666236826,-635.62,0.00049589,120]
[320888497,1711666236836,-500.0,0.00049589,120]
[320888498,1711666236847,-500.0,0.00049589,120]
[320888499,1711666236856,-500.0,0.00049589,120]
[320888500,1711666236866,-500.0,0.00049589,120]
[320888501,1711666236876,-500.0,0.00049589,120]
[320888502,1711666236886,-590.92,0.00049589,120]
[320888503,1711666236895,-500.0,0.00049589,120]
[320888504,1711666236905,-500.0,0.00049589,120]
[320888505,1711666236914,-500.0,0.00049589,120]
[320888506,1711666236924,-500.0,0.00049589,120]
[320888507,1711666236933,-500.0,0.00049589,120]
[320888508,1711666236943,-500.0,0.00049589,120]
[320888509,1711666236953,-656.59,0.00049589,120]
[320888510,1711666236962,-500.0,0.00049589,120]
[320888511,1711666236972,-500.0,0.00049589,30]
[320888512,1711666236982,-192.06,0.00049589,120]
[320888513,1711666236991,-500.0,0.00049589,120]
[320888514,1711666237001,-500.0,0.00049589,120]
[320888515,1711666237011,-500.0,0.00049589,120]
[320888516,1711666237020,-500.0,0.00049589,120]
[320888517,1711666237031,-500.0,0.00049589,120]
[320888518,1711666237042,-500.0,0.00049589,120]
[320888519,1711666237052,-500.0,0.00049589,120]
[320888520,1711666237062,-500.0,0.00049589,120]
[320888521,1711666237071,-580.53,0.00049589,120]
[320888522,1711666237082,-515.28,0.00049589,120]
[320888523,1711666237091,-530.89,0.00049589,120]
[320888524,1711666237101,-835.44,0.00049589,120]
[320888525,1711666237110,-159.01,0.00049589,120]
[320888526,1711666237121,-500.0,0.00049589,120]
[320888527,1711666237130,-500.0,0.00049589,120]
[320888528,1711666237140,-500.0,0.00049589,120]
[320888529,1711666237150,-500.0,0.00049589,120]
[320888530,1711666237159,-500.0,0.00049589,120]
[320888531,1711666237169,-500.0,0.00049589,120]
[320888532,1711666237178,-500.0,0.00049589,120]
[320888533,1711666237188,-500.0,0.00049589,120]
[320888534,1711666237198,-500.0,0.00049589,120]
[320888535,1711666237208,-608.78,0.00049589,120]
[320888536,1711666237218,-500.0,0.00049589,120]
[320888537,1711666237227,-557.37253421,0.00049589,120]
[320888538,1711666237237,-529.76,0.00049589,120]
[320888539,1711666237247,-518.65,0.00049589,120]
[320888540,1711666237258,-500.0,0.00049589,120]
[320888541,1711666237269,-500.0,0.00049589,120]
[320888542,1711666237279,-165.07,0.00049589,120]
[320888543,1711666237290,-500.0,0.00049589,120]
[320888544,1711666237300,-269.56254514,0.00049589,120]
[320888545,1711666237309,-500.0,0.00049589,120]
[320888546,1711666237319,-500.0,0.00049589,120]
[320888547,1711666237330,-500.0,0.00049589,120]
[320888549,1711666237544,-465.28,0.00049589,120]
[320888550,1711666237553,-500.0,0.00049589,120]
[320888551,1711666237563,-500.0,0.00049589,120]
[320888552,1711666237573,-396.79,0.00049589,120]
[320888553,1711666237583,-500.0,0.00049589,120]
[320888554,1711666237592,-511.26,0.00049589,120]
[320888555,1711666237602,-405.06,0.00049589,120]
[320888556,1711666237613,-500.0,0.00049589,120]
[320888557,1711666237622,-500.0,0.00049589,120]
[320888558,1711666237632,-500.0,0.00049589,120]
[320888559,1711666237642,-513.81,0.00049589,120]
[320888560,1711666237651,-589.22,0.00049589,120]
[320888561,1711666237661,-500.0,0.00049589,120]
[320888562,1711666237671,-500.0,0.00049589,120]
[320888563,1711666237680,-500.0,0.00049589,120]
[320888565,1711666237690,-500.0,0.00049589,120]
[320888567,1711666237700,-500.0,0.00049589,120]
[320888569,1711666237709,-500.0,0.00049589,120]
[320888571,1711666237719,-155.96,0.00049589,120]
[320888572,1711666237729,-500.0,0.00049589,120]
[320888573,1711666237738,-236.32,0.00049589,120]
[320888574,1711666237748,-500.0,0.00049589,120]
[320888575,1711666237758,-509.78845959,0.00049589,120]
[320888576,1711666237768,-301.36,0.00049589,120]
[320888577,1711666237777,-500.0,0.00049589,120]
[320888578,1711666237786,-500.0,0.00049589,120]
[320888579,1711666237796,-500.0,0.00049589,120]
[320888580,1711666237806,-567.24,0.00049589,120]
[320888581,1711666237815,-632.26,0.00049589,120]
[320888582,1711666237825,-442.96,0.00049589,120]
[320888583,1711666237834,-500.0,0.00049589,120]
[320888584,1711666237843,-500.0,0.00049589,120]
[320888585,1711666237853,-613.07,0.00049589,120]
[320888586,1711666237862,-300.02,0.00049589,120]
[320888587,1711666237871,-591.2,0.00049589,120]
[320888588,1711666237881,-545.45,0.00049589,120]
[320888589,1711666237890,-500.0,0.00049589,120]
[320888590,1711666237900,-179.9,0.00049589,120]
[320888591,1711666237910,-500.0,0.00049589,120]
[320888592,1711666237920,-500.0,0.00049589,120]
[320888593,1711666237929,-500.0,0.00049589,120]
[320888594,1711666237938,-413.12,0.00049589,120]
[320888595,1711666237948,-500.0,0.00049589,120]
[320888596,1711666237957,-508.14,0.00049589,120]
[320888597,1711666237966,-500.0,0.00049589,120]
[320888598,1711666237976,-500.0,0.00049589,120]
[320888599,1711666237985,-500.0,0.00049589,120]
[320888600,1711666237994,-2241.04,0.00049589,120]
[320888601,1711666238004,-500.0,0.00049589,120]
[320888602,1711666238013,-500.0,0.00049589,120]
[320888603,1711666238022,-500.0,0.00049589,120]
[320888604,1711666238032,-959.82,0.00049589,120]
[320888605,1711666238045,-500.0,0.00049589,120]
[320888606,1711666238055,-682.28,0.00049589,120]
[320888607,1711666238064,-500.0,0.00049589,2]
[320888608,1711666238073,-500.0,0.00049589,7]
[320888609,1711666238083,-500.0,0.00049589,120]
[320888610,1711666238093,-500.0,0.00049589,120]
[320888611,1711666238102,-1744.22,0.00049589,120]
[320888612,1711666238112,-859.17,0.00049589,120]
[320888613,1711666238123,-944.96,0.00049589,120]
[320888614,1711666238133,-871.7,0.00049589,120]
[320888615,1711666238143,-525.5,0.00049589,120]
[320888617,1711666238153,-500.0,0.00049589,120]
[320888619,1711666238163,-500.0,0.00049589,120]
[320888620,1711666238172,-1347.07,0.00049589,120]
[320888621,1711666238182,-787.0,0.00049589,120]
[320888622,1711666238191,-500.0,0.00049589,120]
[320888623,1711666238200,-1308.1,0.00049589,120]
[320888624,1711666238211,-301.98,0.00049589,120]
[320888625,1711666238220,-921.1,0.00049589,120]
[320888626,1711666238230,-500.0,0.00049589,120]
[320888627,1711666238239,-500.0,0.00049589,120]
[320888628,1711666238249,-500.0,0.00049589,120]
[320888629,1711666238259,-500.0,0.00049589,120]
[320888630,1711666238269,-1313.27,0.00049589,120]
[320888631,1711666238279,-500.0,0.00049589,120]
[320888632,1711666238289,-500.0,0.00049589,120]
[320888633,1711666238298,-893.27,0.00049589,120]
[320888634,1711666238308,-910.6,0.00049589,120]
[320888635,1711666238317,-500.0,0.00049589,120]
[320888636,1711666238326,-610.84,0.00049589,120]
[320888637,1711666238335,-500.0,0.00049589,120]
[320888638,1711666238345,-500.0,0.00049589,120]
[320888639,1711666238354,-1265.96,0.00049589,120]
[320888640,1711666238364,-500.0,0.00049589,120]
[320888641,1711666238373,-500.0,0.00049589,120]
[320888642,1711666238383,-500.0,0.00049589,120]
[320888643,1711666238392,-622.72,0.00049589,120]
[320888644,1711666238402,-1548.54,0.00049589,120]
[320888645,1711666238411,-500.0,0.00049589,120]
[320888646,1711666238420,-500.0,0.00049589,120]
[320888647,1711666238431,-649.73,0.00049589,120]
[320888648,1711666238440,-500.0,0.00049589,120]
[320888649,1711666238450,-500.0,0.00049589,120]
[320888650,1711666238459,-346.66,0.00049589,120]
[320888651,1711666238469,-8348.15,0.00049589,120]
[320888652,1711666238479,-500.0,0.00049589,120]
[320888653,1711666238489,-500.0,0.00049589,120]
[320888654,1711666238499,-6166.87,0.00049589,120]
[320888655,1711666238509,-750.53,0.00049589,120]
[320888656,1711666238518,-4216.21,0.00049589,120]
[320888657,1711666238527,-689.26,0.00049589,120]
[320888658,1711666238537,-500.0,0.00049589,120]
[320888659,1711666238546,-500.0,0.00049589,120]
[320888660,1711666238555,-550.46,0.00049589,120]
[320888661,1711666238564,-500.0,0.00049589,120]
[320888662,1711666238573,-500.0,0.00049589,120]
[320888663,1711666238582,-500.0,0.00049589,120]
[320888664,1711666238591,-1304.77,0.00049589,120]
[320888665,1711666238600,-500.0,0.00049589,120]
[320888666,1711666238610,-177.04,0.00049589,120]
[320888667,1711666238618,-1264.27,0.00049589,120]
[320888668,1711666238627,-973.66,0.00049589,120]
[320888669,1711666238638,-500.0,0.00049589,80]
[320888670,1711666238647,-339.18,0.00049589,120]
[320888671,1711666238655,-522.31,0.00049589,120]
[320888672,1711666238664,-1126.12,0.00049589,120]
[320888673,1711666238674,-602.34,0.00049589,120]
[320888674,1711666238683,-1523.41,0.00049589,120]
[320888675,1711666238692,-500.0,0.00049589,120]
[320888676,1711666238701,-501.21,0.00049589,120]
[320888677,1711666238710,-500.0,0.00049589,120]
[320888678,1711666238720,-500.0,0.00049589,120]
[320888679,1711666238729,-763.01,0.00049589,120]
[320888680,1711666238738,-150.0,0.00049589,120]
[320888681,1711666238747,-2463.77,0.00049589,120]
[320888682,1711666238757,-712.33,0.00049589,120]
[320888683,1711666238767,-500.0,0.00049589,120]
[320888684,1711666238779,-500.0,0.00049589,120]
[320888685,1711666238789,-1228.94,0.00049589,120]
[320888686,1711666238799,-538.56,0.00049589,120]
[320888687,1711666238809,-500.0,0.00049589,120]
[320888688,1711666238819,-854.33,0.00049589,120]
[320888689,1711666238831,-4472.82,0.00049589,120]
[320888690,1711666238842,-1030.35,0.00049589,120]
[320888691,1711666238852,-500.0,0.00049589,120]
[320888692,1711666238862,-866.94,0.00049589,120]
[320888693,1711666238873,-500.0,0.00049589,120]
[320888694,1711666238883,-569.96,0.00049589,120]
[320888695,1711666238893,-9937.93,0.00049589,120]
[320888696,1711666238902,-784.16,0.00049589,120]
[320888697,1711666238911,-561.54,0.00049589,120]
[320888698,1711666238921,-1220.52,0.00049589,120]
[320888699,1711666238931,-580.23,0.00049589,120]
[320888700,1711666238942,-788.15,0.00049589,120]
[320888701,1711666238951,-500.0,0.00049589,120]
[320888702,1711666238962,-500.0,0.00049589,120]
[320888703,1711666238972,-500.0,0.00049589,120]
[320888704,1711666238983,-500.0,0.00049589,120]
[320888705,1711666238993,-500.46,0.00049589,120]
[320888706,1711666239004,-500.0,0.00049589,120]
[320888707,1711666239013,-622.09,0.00049589,120]
[320888708,1711666239023,-1189.72,0.00049589,120]
[320888709,1711666239036,-622.68,0.00049589,120]
[320888710,1711666239048,-625.68,0.00049589,120]
[320888711,1711666239057,-765.54,0.00049589,120]
[320888712,1711666239067,-500.0,0.00049589,120]
[320888713,1711666239076,-1048.39,0.00049589,120]
[320888714,1711666239087,-3744.77,0.00049589,120]
[320888715,1711666239096,-717.11,0.00049589,120]
[320888716,1711666239107,-1110.69,0.00049589,21]
[320888717,1711666239118,-3072.9,0.00049589,120]
[320888718,1711666239130,-500.0,0.00049589,2]
[320888719,1711666239140,-500.0,0.00049589,120]
[320888720,1711666239151,-500.0,0.00049589,120]
[320888721,1711666239161,-899.95,0.00049589,120]
[320888722,1711666239170,-1657.03,0.00049589,120]
[320888723,1711666239180,-1015.72,0.00049589,120]
[320888724,1711666239189,-255.37,0.00049589,120]
[320888725,1711666239198,-652.49,0.00049589,120]
[320888726,1711666239207,-253.4,0.00049589,120]
[320888727,1711666239216,-500.0,0.00049589,120]
[320888728,1711666239227,-500.0,0.00049589,120]
[320888729,1711666239236,-500.0,0.00049589,120]
[320888730,1711666239247,-927.99,0.00049589,120]
[320888731,1711666239256,-989.83,0.00049589,120]
[320888732,1711666239266,-649.19932513,0.00049589,120]
[320888733,1711666239275,-1544.92,0.00049589,120]
[320888734,1711666239284,-941.22,0.00049589,120]
[320888735,1711666239293,-500.0,0.00049589,120]
[320888736,1711666239303,-3388.99,0.00049589,120]
[320888737,1711666239312,-733.82,0.00049589,120]
[320888738,1711666239321,-935.62,0.00049589,120]
[320888739,1711666239330,-773.34,0.00049589,120]
[320888740,1711666239340,-860.01,0.00049589,120]
[320888741,1711666239349,-500.0,0.00049589,120]
[320888742,1711666239358,-345.92429139,0.00049589,120]
[320888743,1711666239367,-500.0,0.00049589,120]
[320888744,1711666239376,-500.0,0.00049589,120]
[320888745,1711666239385,-1708.96,0.00049589,120]
[320888746,1711666239395,-2413.39,0.00049589,120]
[320888747,1711666239403,-772.22,0.00049589,120]
[320888748,1711666239413,-779.09,0.00049589,120]
[320888749,1711666239424,-1150.2,0.00049589,120]
[320888750,1711666239433,-500.0,0.00049589,120]
[320888751,1711666239442,-1257.34,0.00049589,120]
[320888752,1711666239451,-1151.59,0.00049589,120]
[320888753,1711666239461,-852.86,0.00049589,120]
[320888754,1711666239471,-500.0,0.00049589,120]
[320888755,1711666239481,-888.25,0.00049589,120]
[320888756,1711666239490,-1817.76,0.00049589,120]
[320888757,1711666239499,-500.0,0.00049589,120]
[320888758,1711666239509,-500.0,0.00049589,120]
[320888759,1711666239518,-500.0,0.00049589,120]
[320888760,1711666239527,-2136.65,0.00049589,120]
[320888761,1711666239536,-500.0,0.00049589,120]
[320888762,1711666239546,-924.06,0.00049589,120]
[320888763,1711666239555,-2643.51,0.00049589,120]
[320888764,1711666239564,-500.0,0.00049589,120]
[320888765,1711666239573,-631.75,0.00049589,120]
[320888766,1711666239583,-966.29,0.00049589,120]
[320888768,1711666239592,-500.0,0.00049589,120]
[320888770,1711666239602,-579.2,0.00049589,120]
[320888772,1711666239611,-544.68,0.00049589,120]
[320888774,1711666239621,-664.82,0.00049589,120]
[320888776,1711666239631,-500.0,0.00049589,120]
[320888778,1711666239641,-1099.06,0.00049589,120]
[320888780,1711666239650,-500.0,0.00049589,2]
[320888782,1711666239659,-500.0,0.00049589,120]
[320888784,1711666239668,-1657.51,0.00049589,120]
[320888786,1711666239677,-939.53,0.00049589,120]
[320888788,1711666239687,-828.6,0.00049589,120]
[320888790,1711666239696,-500.0,0.00049589,120]
[320888792,1711666239705,-891.91,0.00049589,120]
[320888794,1711666239714,-154.58347963,0.00049753,30]
[320888796,1711666239726,-637.0,0.00049808,60]
[320888798,1711666239736,-639.0,0.00049808,60]
[320888800,1711666239747,-512.0,0.00049808,60]
[320888802,1711666239757,-152.10641992,0.00049823,30]
[320888804,1711666239766,-1576.56212021,0.0004986,2]
[320888806,1711666239775,-500.0,0.00049862,120]
[320888808,1711666239784,-984.45,0.00049862,120]
[320888811,1711666239794,-1341.17,0.00049862,120]
[320888813,1711666239803,-858.84,0.00049862,120]
[320888814,1711666239813,-798.49,0.00049862,120]
[320888815,1711666239871,-1175.14,0.00049862,120]
[320888816,1711666239881,-1013.6,0.00049862,120]
[320888817,1711666239891,-1019.16,0.00049862,120]
[320888818,1711666239902,-1594.54,0.00049862,120]
[320888819,1711666239911,-697.52,0.00049862,120]
[320888820,1711666239920,-500.0,0.00049862,120]
[320888821,1711666239930,-279.15,0.00049862,120]
[320888822,1711666239939,-500.0,0.00049862,120]
[320888823,1711666239949,-1283.17,0.00049862,120]
[320888824,1711666239959,-1209.94,0.00049862,120]
[320888825,1711666239968,-1566.39,0.00049862,120]
[320888826,1711666239978,-977.28,0.00049862,120]
[320888827,1711666239988,-978.17,0.00049862,120]
[320888828,1711666239997,-242.26,0.00049863,120]
[320888829,1711666240007,-500.0,0.00049863,120]
[320888830,1711666240015,-676.57,0.00049863,120]
[320888831,1711666240024,-500.0,0.00049863,120]
[320888832,1711666240034,-469.83,0.00049863,120]
[320888833,1711666240046,-500.0,0.00049863,120]
[320888834,1711666240056,-500.0,0.00049863,120]
[320888835,1711666240067,-500.0,0.00049863,120]
[320888836,1711666240076,-500.0,0.00049863,120]
[320888837,1711666240089,-500.0,0.00049863,120]
[320888838,1711666240100,-500.0,0.00049863,120]
[320888839,1711666240111,-643.26,0.00049863,120]
[320888840,1711666240123,-500.0,0.00049863,120]
[320888841,1711666240132,-510.8,0.00049863,120]
[320888842,1711666240141,-500.0,0.00049863,120]
[320888843,1711666240152,-500.0,0.00049863,120]
[320888844,1711666240162,-500.0,0.00049863,120]
[320888845,1711666240172,-500.0,0.00049863,120]
[320888846,1711666240182,-500.0,0.00049863,120]
[320888847,1711666240191,-331.55148304,0.00049863,120]
[320888848,1711666240200,-560.42,0.00049863,120]
[320888849,1711666240210,-500.0,0.00049863,120]
[320888850,1711666240219,-500.0,0.00049863,120]
[320888851,1711666240229,-500.0,0.00049863,120]
[320888852,1711666240238,-500.0,0.00049863,120]
[320888853,1711666240247,-500.0,0.00049863,120]
[320888854,1711666240256,-500.0,0.00049863,120]
[320888855,1711666240266,-500.0,0.00049863,120]
[320888856,1711666240275,-500.0,0.00049863,120]
[320888857,1711666240284,-500.0,0.00049863,120]
[320888858,1711666240293,-500.0,0.00049863,120]
[320888859,1711666240302,-471.18,0.00049863,120]
[320888860,1711666240313,-500.0,0.00049863,120]
[320888861,1711666240322,-500.0,0.00049863,120]
[320888862,1711666240331,-500.0,0.00049863,120]
[320888863,1711666240340,-500.0,0.00049863,120]
[320888864,1711666240349,-500.0,0.00049863,120]
[320888865,1711666240358,-500.0,0.00049863,120]
[320888866,1711666240367,-635.62,0.00049863,120]
[320888867,1711666240376,-500.0,0.00049863,120]
[320888868,1711666240385,-500.0,0.00049863,120]
[320888869,1711666240394,-613.07622116,0.00049863,120]
[320888870,1711666240402,-500.0,0.00049863,120]
[320888871,1711666240411,-500.0,0.00049863,120]
[320888872,1711666240421,-500.0,0.00049863,120]
[320888873,1711666240430,-500.0,0.00049863,120]
[320888874,1711666240439,-500.0,0.00049863,120]
[320888875,1711666240448,-170.82,0.00049863,120]
[320888876,1711666240456,-500.0,0.00049863,120]
[320888877,1711666240465,-500.0,0.00049863,120]
[320888878,1711666240475,-656.59,0.00049863,120]
[320888879,1711666240484,-500.0,0.00049863,120]
[320888880,1711666240493,-500.0,0.00049863,30]
[320888881,1711666240502,-500.0,0.00049863,120]
[320888882,1711666240512,-274.74,0.00049863,120]
[320888883,1711666240521,-500.0,0.00049863,120]
[320888884,1711666240530,-270.95,0.00049863,120]
[320888885,1711666240539,-418.32983179,0.00049863,120]
[320888886,1711666240548,-500.0,0.00049863,120]
[320888887,1711666240557,-500.0,0.00049863,120]
[320888888,1711666240566,-500.0,0.00049863,120]
[320888889,1711666240576,-580.53,0.00049863,120]
[320888890,1711666240585,-515.28,0.00049863,120]
[320888891,1711666240594,-530.89,0.00049863,120]
[320888892,1711666240604,-835.44,0.00049863,120]
[320888893,1711666240614,-260.46,0.00049863,120]
[320888894,1711666240624,-500.0,0.00049863,120]
[320888895,1711666240634,-500.0,0.00049863,120]
[320888896,1711666240643,-500.0,0.00049863,120]
[320888897,1711666240653,-612.14,0.00049863,120]
[320888898,1711666240663,-500.0,0.00049863,120]
[320888899,1711666240673,-500.0,0.00049863,120]
[320888900,1711666240683,-500.0,0.00049863,120]
[320888901,1711666240693,-500.0,0.00049863,120]
[320888902,1711666240703,-500.0,0.00049863,120]
[320888903,1711666240713,-529.76,0.00049863,120]
[320888904,1711666240724,-518.65,0.00049863,120]
[320888905,1711666240733,-500.0,0.00049863,120]
[320888906,1711666240743,-500.0,0.00049863,120]
[320888907,1711666240752,-165.07,0.00049863,120]
[320888908,1711666240762,-500.0,0.00049863,120]
[320888909,1711666240771,-500.0,0.00049863,120]
[320888910,1711666240780,-500.0,0.00049863,120]
[320888911,1711666240790,-500.0,0.00049863,120]
[320888912,1711666240800,-500.0,0.00049863,120]
[320888913,1711666240809,-500.0,0.00049863,120]
[320888914,1711666240819,-500.0,0.00049863,120]
[320888915,1711666240829,-511.26,0.00049863,120]
[320888916,1711666240838,-500.0,0.00049863,120]
[320888917,1711666240847,-500.0,0.00049863,120]
[320888918,1711666240856,-500.0,0.00049863,120]
[320888919,1711666240865,-513.81,0.00049863,120]
[320888920,1711666240874,-589.22,0.00049863,120]
[320888921,1711666240885,-607.0,0.00049863,120]
[320888922,1711666240895,-500.0,0.00049863,120]
[320888923,1711666240906,-500.0,0.00049863,120]
[320888924,1711666240915,-500.0,0.00049863,120]
[320888925,1711666240925,-500.0,0.00049863,120]
[320888926,1711666240935,-500.0,0.00049863,120]
[320888927,1711666240944,-500.0,0.00049863,120]
[320888928,1711666240954,-500.0,0.00049863,120]
[320888929,1711666240964,-500.0,0.00049863,120]
[320888930,1711666240976,-500.0,0.00049863,120]
[320888931,1711666240986,-163.85,0.00049863,120]
[320888932,1711666240995,-567.24,0.00049863,120]
[320888933,1711666241004,-423.55,0.00049863,120]
[320888934,1711666241014,-500.0,0.00049863,120]
[320888935,1711666241023,-613.07,0.00049863,120]
[320888936,1711666241032,-545.45,0.00049863,120]
[320888937,1711666241043,-500.0,0.00049863,120]
[320888938,1711666241052,-500.0,0.00049863,120]
[320888939,1711666241062,-500.0,0.00049863,120]
[320888940,1711666241071,-500.0,0.00049863,120]
[320888941,1711666241081,-500.0,0.00049863,120]
[320888942,1711666241091,-500.0,0.00049863,120]
[320888943,1711666241101,-500.0,0.00049863,120]
[320888944,1711666241112,-500.0,0.00049863,120]
[320888945,1711666241123,-2241.04,0.00049863,120]
[320888946,1711666241132,-500.0,0.00049863,120]
[320888947,1711666241143,-500.0,0.00049863,120]
[320888948,1711666241152,-500.0,0.00049863,120]
[320888949,1711666241163,-959.82,0.00049863,120]
[320888950,1711666241171,-321.42,0.00049863,120]
[320888951,1711666241180,-682.28,0.00049863,120]
[320888952,1711666241189,-500.0,0.00049863,2]
[320888953,1711666241198,-500.0,0.00049863,7]
[320888954,1711666241207,-199.54,0.00049863,120]
[320888955,1711666241218,-500.0,0.00049863,120]
[320888956,1711666241227,-1744.22,0.00049863,120]
[320888957,1711666241237,-859.17,0.00049863,120]
[320888958,1711666241246,-944.96,0.00049863,120]
[320888959,1711666241256,-871.7,0.00049863,120]
[320888960,1711666241265,-500.0,0.00049863,120]
[320888961,1711666241274,-500.0,0.00049863,120]
[320888962,1711666241284,-1347.07,0.00049863,120]
[320888963,1711666241293,-787.0,0.00049863,120]
[320888964,1711666241303,-317.88,0.00049863,120]
[320888965,1711666241313,-1308.1,0.00049863,120]
[320888966,1711666241322,-921.1,0.00049863,120]
[320888967,1711666241331,-500.0,0.00049863,120]
[320888968,1711666241340,-455.76799192,0.00049863,120]
[320888969,1711666241349,-500.0,0.00049863,120]
[320888970,1711666241358,-500.0,0.00049863,120]
[320888971,1711666241368,-1313.27,0.00049863,120]
[320888972,1711666241378,-500.0,0.00049863,120]
[320888973,1711666241387,-500.0,0.00049863,120]
[320888974,1711666241397,-893.27,0.00049863,120]
[320888975,1711666241406,-910.6,0.00049863,120]
[320888976,1711666241416,-500.0,0.00049863,120]